{"text_format":"1","workbook":"xlsx","n_sheets":2,"sheets":["Calendrier","Sources"],"not_rendered":{"charts":0,"images":0,"macros":0,"external_links":0,"defined_names":2,"comments":1,"pivot_tables":0},"unopened":[],"bounds":{"document_bytes":16777216,"sheet_cells":100000,"rows_first":2000,"rows_last":500,"rows_between":2000,"halvings":0,"cell_chars":16384,"cell_head_chars":4096},"cells_cut":0,"cells_raw":0,"read":"whole","date_system":"1900"}

{"sheet":"Calendrier","index":0,"n_rows":68,"n_cols":34,"rows_kept":68,"cut":false,"hidden":false,"merged":[[35,0,35,2],[36,0,36,2],[30,0,30,2],[31,0,31,2],[32,0,32,2],[33,0,33,2],[34,0,34,2],[29,0,29,2],[26,0,26,2],[27,0,27,2],[14,0,14,2],[28,0,28,2],[25,0,25,2],[24,0,24,2],[23,0,23,2],[22,0,22,2],[21,0,21,2],[20,0,20,2],[19,0,19,2],[18,0,18,2],[17,0,17,2],[16,0,16,2],[15,0,15,2],[1,5,4,30],[9,0,9,2],[10,0,10,2],[11,0,11,2],[13,0,13,2],[12,0,12,2]]}
[]
[null,"Années :",2020]
[null,"Mois :","Février"]
[]
[]
[]
[]
[null,null,null,{"$f":"DATE($C$2,VLOOKUP($C$3,Sources!$C$2:$D$14,2,FALSE),1)","v":"2020-02-01"},{"$f":"D8+1","v":"2020-02-02"},{"$f":"E8+1","v":"2020-02-03"},"2020-02-04","2020-02-05","2020-02-06","2020-02-07","2020-02-08","2020-02-09","2020-02-10","2020-02-11","2020-02-12","2020-02-13","2020-02-14","2020-02-15","2020-02-16","2020-02-17","2020-02-18","2020-02-19","2020-02-20","2020-02-21","2020-02-22","2020-02-23","2020-02-24","2020-02-25","2020-02-26","2020-02-27","2020-02-28",{"$f":"IFERROR(IF(OR(AE8=\"\",MONTH(AE8)<>MONTH(AE8+1)),\"\",AE8+1),\"\")","v":"2020-02-29"},{"$f":"IFERROR(IF(OR(AF8=\"\",MONTH(AF8)<>MONTH(AF8+1)),\"\",AF8+1),\"\")","v":""},""]
[]
["Opérations de maintenance"]
["Vérifier le niveau d'huile du réducteur "]
["Graisser les roulements de la vis de mélange"]
["Graisser les roulements de la bande transporteuse "]
["Contrôler la pression du circuit pneumatique"]
["Détecter les fuites au niveau des raccords "]
["Vérifier le fonctionnement des distributeurs "]
["Vérifier le blocage des vérins "]
["Nettoyer la cuve de mélange et les palettes "]
["Contrôler l'usure des palettes de mélange "]
["Vérifier le serrage des palettes "]
["Vérifier les fuites des pompes catalyseur et résine "]
["Vérifier le retour de la résine et du catalyseur "]
["Nettoyer les injecteurs des fluides agglomérants "]
["Relever la température des pompes "]
["Contrôler l'usure des joints d'étanchéité des roulements "]
["Nettoyer les filtres des fluides agglomérants"]
["Vérifier l'état de la bande transporteuse "]
["Vérifier le fonctionnements des rouleaux motorisé et fou "]
["Contrôler le niveau de vibrations des éléments tournants de la machine: arbres/Roulements/Moteurs/Réducteurs"]
["Vérifier l'état/changer les réseaux filtres des fluides agglomérants "]
["Relever la température de fonctionnement des moteurs "]
["Nettoyer le moteur "]
["Vérifier le fonctionnement de boutons poussoires "]
["Contrôler la tension, le courant et la vitesse de rotation des moteurs "]
["Cntrôler l'état général du branchement, connections, relais, disjoncteurs et contacteurs "]
["Vérifier la pile de l'automate programmable "]
["Nettoyer le panneau électrique "]
[]
[]
[]
[]
[]
[]
[]
[]
[]
[]
[]
[null,null,null,null,null,"Années","Mois"]
[null,null,null,null,null,2018,"Janvier"]
[null,null,null,null,null,2019,"Février"]
[null,null,null,null,null,2020,"Mars"]
[null,null,null,null,null,2021,"Avril"]
[null,null,null,null,null,2022,"Mai"]
[null,null,null,null,null,2023,"Juin"]
[null,null,null,null,null,2024,"Juillet",null,null,null,null,null,null,"Années","Mois"]
[null,null,null,null,null,2025,"Août",null,null,null,null,null,null,2018,"Janvier"]
[null,null,null,null,null,2026,"Septembre",null,null,null,null,null,null,2019,"Février"]
[null,null,null,null,null,2027,"Octobre",null,null,null,null,null,null,2020,"Mars"]
[null,null,null,null,null,2028,"Novembre",null,null,null,null,null,null,2021,"Avril"]
[null,null,null,null,null,2029,"Décembre",null,null,null,null,null,null,2022,"Mai"]
[null,null,null,null,null,null,null,null,null,null,null,null,null,2023,"Juin"]
[null,null,null,null,null,null,null,null,null,null,null,null,null,2024,"Juillet"]
[null,null,null,null,null,null,null,null,null,null,null,null,null,2025,"Août"]
[null,null,null,null,null,null,null,null,null,null,null,null,null,2026,"Septembre"]
[null,null,null,null,null,null,null,null,null,null,null,null,null,2027,"Octobre"]
[null,null,null,null,null,null,null,null,null,null,null,null,null,2028,"Novembre"]
[null,null,null,null,null,null,null,null,null,null,null,null,null,2029,"Décembre"]

{"sheet":"Sources","index":1,"n_rows":27,"n_cols":12,"rows_kept":27,"cut":false,"hidden":false,"merged":[]}
[]
[null,null,"Mois","Num",null,"Années",null,"Salariés",null,"Horaires",null,"Tranches"]
[null,null,"Janvier",1,null,2018,null,"Paul",null,"06:30:00",null,"Matin"]
[null,null,"Février",2,null,2019,null,"Anne",null,"07:30:00",null,"Journée"]
[null,null,"Mars",3,null,2020,null,"Marie",null,"08:30:00",null,"Soir"]
[null,null,"Avril",4,null,2021,null,"Arlette",null,"09:30:00"]
[null,null,"Mai",5,null,2022,null,"Hassan",null,"10:30:00"]
[null,null,"Juin",6,null,2023,null,"Charline",null,"11:30:00"]
[null,null,"Juillet",7,null,2024,null,"Barrack",null,"12:30:00"]
[null,null,"Août",8,null,2025,null,"Laura",null,"13:30:00"]
[null,null,"Septembre",9,null,2026,null,"Lucie",null,"14:30:00"]
[null,null,"Octobre",10,null,2027,null,"Sarah",null,"15:30:00"]
[null,null,"Novembre",11,null,2028,null,"Philippe",null,"16:30:00"]
[null,null,"Décembre",12,null,2029,null,"Jean",null,"17:30:00"]
[null,null,null,null,null,null,null,"Mégane",null,"18:30:00"]
[null,null,null,null,null,null,null,"Stéphane",null,"19:30:00"]
[null,null,null,null,null,null,null,"Emilie",null,"20:30:00"]
[null,null,null,null,null,null,null,"Coralie",null,"21:30:00"]
[null,null,null,null,null,null,null,"Nadège",null,"22:30:00"]
[null,null,null,null,null,null,null,"Lionel"]
[null,null,null,null,null,null,null,"Nikos"]
[null,null,null,null,null,null,null,"Yohan"]
[null,null,null,null,null,null,null,"Claire"]
[null,null,null,null,null,null,null,"Giles"]
[null,null,null,null,null,null,null,"Raël"]
[null,null,null,null,null,null,null,"Anne"]
[null,null,null,null,null,null,null,"Maurice"]